fUSD/lending_fUSD_20240626
["ID","MTS","AMOUNT","RATE_DAILY","PERIOD"]
[330433848,1719398486251,150.0,0.00011783,2]
[330433849,1719398486274,150.0,0.00011783,2]
[330433850,1719398486295,197.12498011,0.00011783,2]
[330433851,1719398486317,55.4474171,0.00011783,2]
[330433852,1719398490034,-150.0,0.00011799,2]
[330433853,1719398493451,-5.1965012,0.00011799,2]
[330433854,1719398493479,-144.8034988,0.00011799,2]
[330433855,1719398563775,-150.0,0.00011799,2]
[330433856,1719398574684,-97.74904132,0.00011799,2]
[330433857,1719398574707,-52.25095868,0.00011799,2]
[330433858,1719398578610,-150.0,0.00011799,2]
[330433859,1719398579230,-150.0,0.00011799,2]
[330433860,1719398579888,-150.0,0.00011799,2]
[330433861,1719398582987,-150.0,0.00011799,2]
[330433862,1719398583600,-104.74552115,0.00011799,2]
[330433863,1719398583622,-45.25447885,0.00011799,2]
[330433864,1719398584308,-119.83552115,0.00011799,2]
[330433865,1719398584329,-30.16447885,0.00011799,2]
[330433866,1719398585002,-124.83552115,0.00011799,2]
[330433867,1719398585023,-25.16447885,0.00011799,2]
[330433868,1719398588984,-150.0,0.00011799,2]
[330433869,1719398590048,-150.0,0.00011799,2]
[330433870,1719398593126,-150.0,0.00011799,2]
[330433871,1719398593749,-150.0,0.00011799,2]
[330433872,1719398594710,-150.0,0.00011799,2]
[330433873,1719398598112,-150.0,0.00011799,2]
[330433874,1719398598847,-150.0,0.00011799,2]
[330433875,1719398600469,-150.0,0.00011799,2]
[330433876,1719398602996,-150.0,0.00011799,2]
[330433877,1719398603637,-150.0,0.00011799,2]
[330433878,1719398604376,-150.0,0.00011799,2]
[330433879,1719398605268,-150.0,0.00011799,2]
[330433880,1719398606276,-150.0,0.00011799,2]
[330433881,1719398608187,-150.0,0.00011799,2]
[330433882,1719398608907,-150.0,0.00011799,2]
[330433883,1719398609868,-150.0,0.00011799,2]
[330433884,1719398611335,-150.0,0.00011799,2]
[330433885,1719398612896,-150.0,0.00011799,2]
[330433886,1719398613500,-150.0,0.00011799,2]
[330433887,1719398614526,-150.0,0.00011799,2]
[330433890,1719398791619,163.11310906,0.00011785,2]
[330433891,1719398810286,24682.08289423,0.00011784,2]
[330433892,1719398821506,552.57239721,0.00011785,2]
[330433893,1719398838675,273.19132381,0.00011785,2]
[330433894,1719398844803,204.75806513,0.00011785,2]
[330433895,1719398845075,300.21600683,0.00011785,2]
[330433896,1719398915275,17317.55001266,0.00011785,2]
[330433897,1719398924263,552.57239721,0.00011785,2]
[330433898,1719398952426,1089.0,0.00025,60]
[330433899,1719398964093,-709.39091482,0.00011799,2]
[330433900,1719398964116,-660.8093781,0.00011799,2]
[330433917,1719399032275,-283.54219834,0.00012027,2]
[330433918,1719399032285,-190.83685015,0.00013798,2]
[330433919,1719399032299,-109.16314985,0.00013798,2]
[330433920,1719399032312,-409.15851751,0.00013799,2]
[330433921,1719399032323,-150.0,0.000138,2]
[330433922,1719399032335,-358.07657357,0.00013859,2]
[330433923,1719399032348,-20.29045803,0.00013859,2]
[330433924,1719399032359,-220.09,0.0001389,2]
[330433925,1719399032369,-133.72391093,0.000139,2]
[330433926,1719399032380,-9195.81231336,0.000139,2]
[330433927,1719399032393,-3629.27696498,0.000139,2]
[330433928,1719399032404,-784.98522457,0.000139,2]
[330433929,1719399032418,-1011.31828616,0.000139,2]
[330433930,1719399032428,-1546.4212556,0.000139,2]
[330433931,1719399032440,-3674.28117892,0.000139,2]
[330433932,1719399032499,-720.0,0.000139,2]
[330433933,1719399032511,-1935.23226309,0.000139,2]
[330433934,1719399032523,-897.95,0.000139,2]
[330433935,1719399032535,-842.78190239,0.000139,2]
[330433936,1719399032544,-735.77566576,0.00013905,2]
[330433937,1719399032556,-470.81433424,0.00013905,2]
[330433938,1719399032566,-179.69296961,0.00013906,2]
[330433939,1719399032575,-195.50132898,0.00013906,2]
[330433940,1719399032586,-1000.86250409,0.00013906,2]
[330433941,1719399032596,-2508.32,0.0001399,2]
[330433942,1719399032606,-2508.32,0.0001399,2]
[330433943,1719399032616,-2508.32,0.0001399,2]
[330433944,1719399032626,-2508.32,0.0001399,2]
[330433945,1719399032641,-2508.32,0.0001399,2]
[330433946,1719399032650,-499.99,0.00013999,2]
[330433947,1719399032660,-518.04242089,0.00013999,2]
[330433948,1719399032670,-17597.30390294,0.00013999,2]
[330433949,1719399032681,-27784.53149617,0.00014,2]
[330433950,1719399032693,-1152.81088996,0.00014,2]
[330433951,1719399032705,-446.90887868,0.00014,2]
[330433952,1719399032719,-35187.11265191,0.00014,2]
[330433953,1719399032731,-71574.84192306,0.00014,2]
[330433954,1719399032743,-634075.64856308,0.00014,2]
[330433955,1719399032757,-397.08384421,0.00014,2]
[330433956,1719399032769,-2000.0,0.00014,2]
[330433957,1719399032782,-482.99531256,0.00014,2]
[330433958,1719399032796,-455.84,0.00014,2]
[330433959,1719399032808,-478001.01875012,0.00014,2]
[330433960,1719399032822,-1346.78709982,0.00014,2]
[330433961,1719399032835,-5431.48949184,0.00014,2]
[330433962,1719399032906,-2025.59405055,0.00014,2]
[330433963,1719399032921,-2796.90567683,0.00014,2]
[330433972,1719399038410,-5800.69742509,0.00014,2]
[330433973,1719399038422,-371.35077724,0.00014,2]
[330433974,1719399038434,-30740.99999999,0.00014,2]
[330433975,1719399038446,-80407.151152,0.00014,2]
[330433980,1719399039856,-531.71193201,0.00014,2]
[330433982,1719399039868,-272.12555121,0.00014,2]
[330433983,1719399040173,-2094.00636381,0.00014,2]
[330433984,1719399040185,-526.41,0.00014,2]
[330433985,1719399040197,-540.39,0.00014,2]
[330433986,1719399040208,-1421.277422,0.00014,2]
[330433987,1719399040221,-1061.16367473,0.00014,2]
[330433988,1719399040232,-670.0,0.00014,2]
[330433989,1719399040243,-2832.13414275,0.00014,2]
[330433990,1719399040255,-50040.69393311,0.00014,2]
[330434009,1719399043368,-313.3815487,0.00014,2]
[330434010,1719399043380,-1522.70187766,0.00014,2]
[330434011,1719399043391,-1520.08563124,0.00014,2]
[330434012,1719399043482,-1736.9583453,0.00014,2]
[330434052,1719399046080,-1084.74979351,0.00014,2]
[330434054,1719399046092,-960.80812001,0.00014,2]
[330434057,1719399046104,-594.81,0.00014,2]
[330434073,1719399046793,-322.8916,0.00014,2]
[330434074,1719399046805,-2518.74915113,0.00014,2]
[330434075,1719399046817,-748.95226753,0.00014,2]
[330434076,1719399115149,-300.0,0.00013999,2]
[330434077,1719399115177,-9700.0,0.00014,2]
[330434078,1719399166304,-705.25514171,0.0001399,2]
[330434079,1719399166328,-300.0,0.00013999,2]
[330434080,1719399166353,-2050.339894,0.00013999,2]
[330434081,1719399166383,-11944.40496429,0.00014,2]
[330434083,1719399288551,-10021.2407,0.00013899,2]
[330434084,1719399288574,-1806.7862,0.000139,2]
[330434085,1719399288598,-3171.9731,0.000139,2]
[330434098,1719399514647,1293.34340872,0.00013999,7]
[330434099,1719399643290,150.0,0.00011785,2]
[330434100,1719399643314,1725.24951654,0.00011785,2]
[330434103,1719399938474,150.0,6.939e-05,2]
[330434104,1719399938499,150.0,6.939e-05,2]
[330434105,1719399938522,68.59840723,6.939e-05,2]
[330434106,1719399976372,150.0,8.411e-05,2]
[330434107,1719399976395,150.0,8.411e-05,2]
[330434108,1719399976418,150.0,8.411e-05,2]
[330434109,1719399976440,120.26264835,8.411e-05,2]
[330434110,1719399991917,150.0,8.411e-05,2]
[330434111,1719399991943,150.0,8.411e-05,2]
[330434112,1719399991965,68.09024771,8.411e-05,2]
[330434113,1719400019007,150.0,0.0001,2]
[330434114,1719400019036,15.09,0.0001,2]
[330434115,1719400023630,150.0,8.411e-05,2]
[330434116,1719400023654,150.0,8.411e-05,2]
[330434117,1719400023677,150.0,8.411e-05,2]
[330434118,1719400023701,150.0,8.411e-05,2]
[330434119,1719400023724,150.0,8.411e-05,2]
[330434120,1719400023747,150.0,8.411e-05,2]
[330434121,1719400023772,2073.32454932,8.411e-05,2]
[330434122,1719400069138,150.0,0.00010195,2]
[330434123,1719400069160,150.0,0.00010195,2]
[330434124,1719400069180,150.0,0.00010195,2]
[330434125,1719400069201,150.0,0.00010195,2]
[330434126,1719400069223,150.0,0.00010195,2]
[330434127,1719400069244,150.0,0.00010195,2]
[330434128,1719400069265,150.0,0.00010195,2]
[330434129,1719400086705,150.0,0.00010195,2]
[330434130,1719400086728,6.99647983,0.00010195,2]
[330434131,1719400087098,143.00352017,0.00010195,2]
[330434132,1719400087123,104.74552115,0.00010195,2]
[330434133,1719400096309,155.1965012,0.00010195,2]
[330434134,1719400101019,283.54219834,0.00010195,2]
[330434135,1719400104499,150.0,0.00010195,2]
[330434136,1719400104535,5.14210482,0.00010195,2]
[330434137,1719400107211,150.0,0.00010195,2]
[330434138,1719400107236,59.91230076,0.00010195,2]
[330434140,1719400136684,186.46408137,0.00010195,2]
[330434141,1719400136708,150.0,0.00010195,2]
[330434142,1719400136731,113.53591863,0.00010195,2]
[330434143,1719400146333,150.0,0.00010195,2]
[330434144,1719400146356,402.57239721,0.00010195,2]
[330434145,1719400206055,150.0,0.00010195,2]
[330434146,1719400206382,5.0,0.00010195,2]
[330434147,1719400209352,150.0,0.00010195,2]
[330434148,1719400209377,25.16447885,0.00010195,2]
[330434149,1719400210194,-1719.96025146,0.00011785,2]
[330434150,1719400218701,583.95,0.00011365,2]
[330434159,1719400232047,-552.57239721,0.00012357,2]
[330434161,1719400232058,-154.63,0.0001354,2]
[330434162,1719400232068,-155.08569684,0.00013579,2]
[330434163,1719400232078,-165.26,0.0001358,2]
[330434164,1719400232089,-250.0,0.00013601,2]
[330434165,1719400232099,-381.25190595,0.00013618,2]
[330434166,1719400232112,-322.46768831,0.00013618,2]
[330434167,1719400232324,-115.47040574,0.00013618,2]
[330434168,1719400232334,-583.95,0.00013629,2]
[330434169,1719400232344,-173.51,0.00013699,2]
[330434170,1719400232353,-560.87,0.00013699,2]
[330434171,1719400232362,-2000.0,0.00013704,3]
[330434172,1719400232372,-300.0,0.00013716,2]
[330434173,1719400232381,-154.63,0.00013717,2]
[330434174,1719400232391,-500.0,0.00013742,2]
[330434175,1719400232400,-1437.61834,0.0001386,2]
[330434176,1719400232410,-150.99,0.0001386,2]
[330434177,1719400232419,-154.63,0.00013893,2]
[330434178,1719400232429,-4249.5616,0.000139,2]
[330434179,1719400232439,-466.9961,0.000139,2]
[330434180,1719400232449,-1000.0,0.000139,2]
[330434181,1719400232459,-373.3922,0.000139,2]
[330434182,1719400232469,-161.72367264,0.000139,2]
[330434183,1719400232478,-6808.6431,0.000139,2]
[330434184,1719400232487,-1000.0,0.000139,2]
[330434185,1719400232497,-2500.0,0.000139,2]
[330434186,1719400232507,-2477.82201372,0.000139,2]
[330434187,1719400232520,-825.89228628,0.000139,2]
[330434188,1719400232529,-1914.3511,0.000139,2]
[330434189,1719400232539,-6124.7027809,0.00013918,2]
[330434190,1719400232551,-1723.49402903,0.00013918,2]
[330434192,1719400239303,-1378.38579098,0.00013918,2]
[330434193,1719400239315,-1621.92213545,0.00013918,2]
[330434194,1719400239327,-3580.78302596,0.00013918,2]
[330434195,1719400239339,-1573.8060882,0.00013918,2]
[330434196,1719400239351,-499.27662557,0.00013918,2]
[330434197,1719400239362,-1283.73578136,0.00013918,2]
[330434198,1719400239452,-3069.4767,0.00013918,2]
[330434199,1719400239463,-3044.41704255,0.00013918,2]
[330434200,1719400239474,-900.77625369,0.00013922,2]
[330434201,1719400239484,-21299.03545906,0.00014,2]
[330434204,1719400240215,-1818.9,0.00014,2]
[330434206,1719400240231,-356.19588052,0.00014,2]
[330434208,1719400240244,-3466.91092241,0.00014,2]
[330434209,1719400240257,-1257.89632364,0.00014,2]
[330434210,1719400240270,-339.7305,0.00014,2]
[330434211,1719400240620,-12725.62858474,0.00014,2]
[330434212,1719400240632,-552.33090042,0.00014,2]
[330434213,1719400240643,-320.10297877,0.00014,2]
[330434218,1719400241203,552.57239721,0.00010195,2]
[330434220,1719400243000,-30761.30209604,0.00014,2]
[330434222,1719400243015,-189618.44949348,0.00014,2]
[330434225,1719400243024,-1000.0,0.00014022,2]
[330434226,1719400243035,-499.99,0.00014022,2]
[330434227,1719400243044,-154.63,0.00014069,2]
[330434228,1719400243054,-178.03,0.00014138,2]
[330434229,1719400243065,-154.63,0.00014246,2]
[330434230,1719400243075,-300.09148991,0.00014285,2]
[330434231,1719400243085,-65782.4201203,0.00014302,2]
[330434232,1719400243249,-2043.72080312,0.00014302,2]
[330434233,1719400243261,-8135.94021933,0.00014302,2]
[330434234,1719400243271,-250.0,0.00014343,2]
[330434235,1719400243280,-1141.17067001,0.00014446,2]
[330434236,1719400243292,-8.92142788,0.00014446,2]
[330434237,1719400243301,-178.03,0.00014546,2]
[330434238,1719400243310,-500.0,0.0001472,2]
[330434239,1719400243319,-500.0,0.0001473,2]
[330434240,1719400243328,-500.0,0.0001475,2]
[330434241,1719400243338,-500.0,0.0001479,2]
[330434242,1719400243347,-900.7762536,0.00014808,2]
[330434243,1719400243356,-500.0,0.0001484,2]
[330434244,1719400243365,-500.0,0.0001487,2]
[330434245,1719400243374,-103835.56847191,0.00015,2]
[330434246,1719400243384,-491.61691634,0.0001503,2]
[330434247,1719400243394,-420.0,0.00015031,2]
[330434248,1719400243403,-319.69783831,0.0001541,2]
[330434249,1719400243412,-1150.09209789,0.00015511,2]
[330434250,1719400243422,-161.72367262,0.00015678,2]
[330434251,1719400243433,-900.7762536,0.00015695,2]
[330434252,1719400243443,-1000.0,0.00015774,2]
[330434253,1719400243454,-583.95,0.00015893,2]
[330434254,1719400243463,-1437.61835,0.0001636,2]
[330434255,1719400243473,-173.51,0.00016438,2]
[330434256,1719400243483,-587.0,0.00016472,2]
[330434257,1719400243494,-161.72367262,0.00016567,2]
[330434258,1719400243504,-1150.09209789,0.00016576,2]
[330434259,1719400243513,-900.7762536,0.00016581,2]
[330434261,1719400243522,-161.72367262,0.00017456,2]
[330434262,1719400243531,-587.72466878,0.0001746,2]
[330434264,1719400243541,-900.7762536,0.00017468,2]
[330434266,1719400243550,-406.5782,0.00017507,2]
[330434267,1719400243560,-1000.0,0.00017527,2]
[330434269,1719400243570,-11745.0,0.000176,5]
[330434271,1719400243579,-1150.09209789,0.00017641,2]
[330434273,1719400243588,-218.0,0.0001765,2]
[330434275,1719400243598,-4788.80703278,0.00017699,2]
[330434277,1719400243607,-525.88970109,0.000177,2]
[330434279,1719400243616,-1000.0,0.00018,2]
[330434281,1719400243625,-225.0,0.00018,2]
[330434283,1719400243634,-355.0,0.00018,2]
[330434286,1719400243644,-823.0,0.00018051,2]
[330434287,1719400243653,-583.95,0.00018157,2]
[330434290,1719400243664,-3963.4413634,0.0001818,2]
[330434292,1719400243673,-4200.0,0.00018181,2]
[330434294,1719400243683,-900.0,0.00018181,2]
[330434296,1719400243693,-600.0,0.00018181,2]
[330434298,1719400243702,-700.0,0.00018181,2]
[330434300,1719400243712,-161.72367262,0.00018344,2]
[330434302,1719400243721,-900.7762536,0.00018354,2]
[330434303,1719400243730,-218.0,0.0001836,2]
[330434306,1719400243740,-12749.19467156,0.00018607,2]
[330434307,1719400243752,-1150.09209789,0.00018705,2]
[330434309,1719400243761,-4200.0,0.00018729,2]
[330434311,1719400243770,-600.0,0.00018729,2]
[330434313,1719400243779,-900.0,0.00018729,2]
[330434315,1719400243790,-700.0,0.00018729,2]
[330434317,1719400243800,-1193.164,0.00018838,2]
[330434319,1719400243810,-1437.61834,0.0001886,2]
[330434321,1719400243819,-154.49,0.000189,2]
[330434323,1719400243829,-218.0,0.0001906,2]
[330434324,1719400243838,-3321.0,0.000191,3]
[330434325,1719400243848,-560.87,0.00019178,2]
[330434326,1719400243858,-675.0,0.000192,3]
[330434327,1719400243867,-161.72367262,0.00019233,2]
[330434328,1719400243878,-900.7762536,0.00019241,2]
[330434329,1719400243888,-4200.0,0.00019277,2]
[330434330,1719400243897,-900.0,0.00019277,2]
[330434331,1719400243907,-600.0,0.00019277,2]
[330434332,1719400243917,-700.0,0.00019277,2]
[330434333,1719400243927,-1000.0,0.0001928,2]
[330434334,1719400243937,-2375.74966593,0.00019451,2]
[330434335,1719400243947,-218.0,0.0001977,2]
[330434336,1719400243957,-1150.09209789,0.0001977,2]
[330434337,1719400243966,-1152.0,0.00019781,2]
[330434338,1719400243975,-2000.0,0.00019825,2]
[330434339,1719400243986,-4200.0,0.00019825,2]
[330434340,1719400243999,-600.0,0.00019825,2]
[330434341,1719400244011,-700.0,0.00019825,2]
[330434342,1719400244022,-208.0,0.0002008,2]
[330434343,1719400244032,-161.72367262,0.00020122,2]
[330434344,1719400244042,-900.7762536,0.00020127,2]
[330434345,1719400244052,-2000.0,0.00020373,2]
[330434346,1719400244067,-900.0,0.00020373,2]
[330434347,1719400244077,-583.95,0.0002042,2]
[330434348,1719400244087,-218.0,0.0002048,2]
[330434349,1719400244097,-150.0,0.00020698,2]
[330434350,1719400244107,-4585.39122986,0.000207,2]
[330434351,1719400244153,-810.36488014,0.000207,2]
[330434352,1719400244189,-0.00551354,0.000207,2]
[330434353,1719400244203,-2104.23837646,0.000207,2]
[330434354,1719400244213,-150.0,0.00020703,2]
[330434355,1719400244222,-150.0,0.00020733,2]
[330434356,1719400244232,-150.0,0.00020754,2]
[330434357,1719400244242,-5579.18028061,0.000208,3]
[330434358,1719400244263,-818.61939952,0.000208,3]
[330434359,1719400244274,-8972.9135637,0.000208,3]
[330434360,1719400244320,-3172.65693825,0.000208,3]
[330434361,1719400244331,-1668.02297108,0.000208,3]
[330434362,1719400244342,-80491.48775438,0.000208,3]
[330434370,1719400246343,-1904.09794732,0.00015919,2]
[330434371,1719400246356,-1389.93023444,0.00015919,2]
[330434372,1719400246371,-299.975,0.00015919,2]
[330434373,1719400246383,-2693.4448,0.00015919,2]
[330434374,1719400246397,-4654.61803241,0.00015919,2]
[330434375,1719400246408,-348.5255592,0.00015919,2]
[330434376,1719400246420,-590.59,0.00015919,2]
[330434377,1719400246432,-1791.11842663,0.00015919,2]
[330434378,1719400246441,-8068.46577598,0.000208,3]
[330434379,1719400246453,-1246.58900404,0.000208,3]
[330434380,1719400246465,-1348.24207892,0.000208,3]
[330434381,1719400246652,-12115.36860853,0.000208,3]
[330434382,1719400246666,-462.43344098,0.000208,3]
[330434383,1719400246678,-2660.93003738,0.000208,3]
[330434384,1719400246690,-11937.36167102,0.000208,3]
[330434385,1719400246702,-353.36796047,0.000208,3]
[330434386,1719400246714,-272.02876914,0.000208,3]
[330434387,1719400246724,-208.0,0.0002081,2]
[330434388,1719400246734,-150.0,0.00020817,2]
[330434389,1719400246743,-150.0,0.00020818,2]
[330434390,1719400246756,-828.62142117,0.00020835,2]
[330434391,1719400246768,-321.47067672,0.00020835,2]
[330434392,1719400246778,-260.9857375,0.00020911,3]
[330434393,1719400246794,-260.22555213,0.00020911,3]
[330434394,1719400246806,-508.5,0.00020911,3]
[330434395,1719400246818,-457.55470568,0.00020911,3]
[330434396,1719400246831,-3483.0078709,0.00020911,3]
[330434397,1719400246841,-4200.0,0.00020921,2]
[330434398,1719400246851,-2000.0,0.00020921,2]
[330434399,1719400246861,-600.0,0.00020921,2]
[330434400,1719400246871,-700.0,0.00020921,2]
[330434401,1719400246881,-693.51091,0.00021,2]
[330434402,1719400246891,-1250.0,0.00021,2]
[330434403,1719400246901,-161.72367262,0.00021011,2]
[330434404,1719400246911,-900.7762536,0.00021014,2]
[330434405,1719400246922,-150.0,0.00021017,2]
[330434406,1719400246932,-150.0,0.00021026,2]
[330434407,1719400246942,-1000.0,0.00021032,2]
[330434408,1719400246952,-150.0,0.0002108,2]
[330434409,1719400246961,-150.0,0.00021105,2]
[330434410,1719400246971,-150.0,0.00021119,2]
[330434411,1719400246981,-218.0,0.0002118,2]
[330434412,1719400246991,-150.0,0.00021181,2]
[330434413,1719400247006,-150.0,0.00021198,2]
[330434414,1719400247019,-178.03,0.00021207,2]
[330434415,1719400247028,-150.0,0.00021229,2]
[330434416,1719400247039,-150.0,0.00021243,2]
[330434417,1719400247050,-150.0,0.00021245,2]
[330434418,1719400247062,-150.0,0.00021254,2]
[330434419,1719400247072,-150.0,0.00021267,2]
[330434420,1719400247082,-150.0,0.00021273,2]
[330434421,1719400247094,-150.0,0.00021284,2]
[330434422,1719400247104,-150.0,0.00021287,2]
[330434423,1719400247114,-9940.54773242,0.00021311,3]
[330434424,1719400247124,-209.612282,0.00021321,2]
[330434425,1719400247133,-177.163466,0.00021321,2]
[330434426,1719400247144,-1085.993758,0.00021321,2]
[330434427,1719400247154,-163.588786,0.00021321,2]
[330434428,1719400247163,-14355.280934,0.00021321,2]
[330434429,1719400247184,-880.196051,0.00021321,2]
[330434430,1719400247196,-278.519029,0.00021321,2]
[330434431,1719400247206,-184.868518,0.00021321,2]
[330434432,1719400247216,-150.0,0.00021333,2]
[330434433,1719400247227,-150.0,0.00021336,2]
[330434434,1719400247237,-150.0,0.00021342,2]
[330434435,1719400247247,-150.0,0.00021354,2]
[330434436,1719400247257,-14910.8215986,0.0002136,3]
[330434437,1719400247614,-1437.61835,0.0002136,2]
[330434438,1719400247624,-150.0,0.00021367,2]
[330434439,1719400247634,-660.50574852,0.00021369,2]
[330434440,1719400247651,-23525.3,0.0002137,2]
[330434441,1719400247668,-150.0,0.00021379,2]
[330434442,1719400247678,-150.0,0.00021383,2]
[330434443,1719400247687,-150.0,0.00021404,2]
[330434444,1719400247698,-150.0,0.0002141,2]
[330434445,1719400247707,-150.0,0.00021434,2]
[330434446,1719400247716,-150.0,0.00021435,2]
[330434447,1719400247727,-150.0,0.00021441,2]
[330434448,1719400247736,-150.0,0.00021441,2]
[330434449,1719400247747,-150.0,0.0002145,2]
[330434450,1719400247756,-150.0,0.00021457,2]
[330434451,1719400247766,-150.0,0.00021459,2]
[330434452,1719400247775,-900.0,0.00021469,2]
[330434453,1719400247785,-2000.0,0.00021469,2]
[330434454,1719400247796,-150.0,0.00021476,2]
[330434455,1719400247806,-1012.87391772,0.00021476,2]
[330434456,1719400247816,-150.0,0.00021477,2]
[330434457,1719400247825,-150.0,0.00021477,2]
[330434458,1719400247835,-150.0,0.00021478,2]
[330434459,1719400247845,-150.0,0.00021481,2]
[330434460,1719400247855,-150.0,0.00021496,2]
[330434461,1719400247865,-150.0,0.00021496,2]
[330434462,1719400247875,-150.0,0.00021498,2]
[330434463,1719400247885,-150.0,0.00021514,2]
[330434464,1719400247894,-150.0,0.00021518,2]
[330434465,1719400247904,-150.0,0.00021526,2]
[330434466,1719400247914,-150.0,0.00021526,2]
[330434467,1719400247923,-150.0,0.00021532,2]
[330434468,1719400247933,-4970.27386621,0.0002154,3]
[330434469,1719400247943,-150.0,0.00021545,2]
[330434470,1719400247952,-208.0,0.0002155,2]
[330434471,1719400247961,-150.0,0.00021552,2]
[330434472,1719400247971,-277.33748622,0.00021559,2]
[330434473,1719400247981,-150.0,0.00021567,2]
[330434474,1719400247993,-912.0,0.00021576,2]
[330434475,1719400248004,-4970.27386621,0.00021577,3]
[330434476,1719400248020,-150.0,0.00021578,2]
[330434477,1719400248030,-150.0,0.00021586,2]
[330434478,1719400248040,-1757.94329266,0.00021586,2]
[330434479,1719400248051,-1085.993758,0.00021587,2]
[330434480,1719400248062,-14355.280934,0.00021587,2]
[330434481,1719400248072,-880.196051,0.00021587,2]
[330434482,1719400248081,-150.0,0.00021588,2]
[330434483,1719400248094,-4970.27386621,0.0002159,3]
[330434484,1719400248104,-4508.63685271,0.000216,7]
[330434485,1719400248114,-150.0,0.00021604,2]
[330434486,1719400248123,-150.0,0.00021614,2]
[330434487,1719400248133,-150.0,0.00021616,2]
[330434488,1719400248142,-150.0,0.00021637,2]
[330434489,1719400248152,-150.0,0.00021642,2]
[330434490,1719400248162,-1269.98169867,0.00021643,2]
[330434491,1719400248172,-426.31,0.00021644,2]
[330434492,1719400248183,-155.34,0.00021644,2]
[330434493,1719400248193,-150.0,0.00021645,2]
[330434494,1719400248203,-9940.54773242,0.0002167,3]
[330434495,1719400248213,-184.868518,0.00021676,2]
[330434496,1719400248223,-1613.0,0.00021678,2]
[330434497,1719400248232,-150.0,0.00021679,2]
[330434498,1719400248242,-14322.70044867,0.0002168,2]
[330434499,1719400248252,-150.0,0.00021684,2]
[330434500,1719400248261,-715.52105634,0.00021685,2]
[330434501,1719400248270,-157.60710861,0.00021686,2]
[330434502,1719400248279,-150.0,0.00021688,2]
[330434503,1719400248289,-9940.54773242,0.00021695,3]
[330434504,1719400248299,-241.54316932,0.000217,2]
[330434505,1719400248308,-328.54104863,0.00021704,2]
[330434506,1719400248317,-25000.0,0.00021705,2]
[330434507,1719400248327,-622.21690927,0.00021717,2]
[330434508,1719400248337,-292.27590029,0.00021717,2]
[330434509,1719400248346,-241.54316932,0.00021718,2]
[330434510,1719400248355,-155.0,0.00021719,2]
[330434511,1719400248365,-150.0,0.0002172,2]
[330434512,1719400248375,-196.20443442,0.00021725,2]
[330434513,1719400248384,-412.4981325,0.00021725,2]
[330434514,1719400248394,-4970.27386621,0.00021726,3]
[330434515,1719400248404,-172.86007933,0.00021733,2]
[330434516,1719400248414,-474.97828798,0.00021733,2]
[330434517,1719400248423,-150.0,0.00021735,2]
[330434518,1719400248432,-217.93104005,0.00021735,2]
[330434519,1719400248442,-156.4774398,0.00021735,2]
[330434520,1719400248451,-401.57927817,0.00021735,2]
[330434521,1719400248460,-155.0,0.00021736,2]
[330434522,1719400248469,-638.66766291,0.00021736,2]
[330434523,1719400248478,-269.30966923,0.00021736,2]
[330434524,1719400248488,-241.54316932,0.00021736,2]
[330434525,1719400248497,-150.0,0.00021741,2]
[330434526,1719400248507,-150.0,0.00021743,2]
[330434527,1719400248516,-241.54316932,0.00021755,2]
[330434528,1719400248525,-150.0,0.00021756,2]
[330434529,1719400248534,-150.0,0.00021759,2]